fUST/lending_fUST_20260630
["ID","MTS","AMOUNT","RATE_DAILY","PERIOD"]
[426763361,1782787855000,-500.0,0.00029863,7]
[426763364,1782787855000,-500.0,0.00029863,7]
[426763368,1782787855000,-500.0,0.00029863,7]
[426763362,1782787855000,-500.0,0.00029863,7]
[426763363,1782787855000,-500.0,0.00029863,7]
[426763370,1782787855000,-500.0,0.00029863,7]
[426763369,1782787855000,-500.0,0.00029863,7]
[426763371,1782787855000,-500.0,0.00029863,7]
[426763372,1782787855000,-160.47,0.00029863,7]
[426763373,1782787855000,-500.0,0.00029863,7]
[426763375,1782787855000,-500.0,0.00029863,7]
[426763400,1782787855000,-819.08,0.00029863,7]
[426763433,1782787855000,-819.08,0.00029863,7]
[426763414,1782787855000,-2435.25,0.00029863,7]
[426763441,1782787855000,-819.08,0.00029863,7]
[426763432,1782787855000,-2435.25,0.00029863,7]
[426763437,1782787855000,-819.08,0.00029863,7]
[426763435,1782787855000,-819.08,0.00029863,7]
[426763438,1782787855000,-2435.25,0.00029863,7]
[426763440,1782787855000,-2435.25,0.00029863,7]
[426763439,1782787855000,-819.08,0.00029863,7]
[426763436,1782787855000,-2435.25,0.00029863,7]
[426763443,1782787855000,-500.0,0.00029863,7]
[426763445,1782787855000,-500.0,0.00029863,7]
[426763444,1782787855000,-819.31,0.00029863,7]
[426763430,1782787855000,-2435.25,0.00029863,7]
[426763448,1782787855000,-500.0,0.00029863,7]
[426763453,1782787855000,-2435.25,0.00029863,7]
[426763451,1782787855000,-500.0,0.00029863,7]
[426763450,1782787855000,-2435.25,0.00029863,7]
[426763449,1782787855000,-2435.25,0.00029863,7]
[426763456,1782787855000,-500.0,0.00029863,7]
[426763454,1782787855000,-500.0,0.00029863,7]
[426763455,1782787855000,-2435.25,0.00029863,7]
[426763452,1782787855000,-2435.25,0.00029863,7]
[426763458,1782787855000,-500.0,0.00029863,7]
[426763457,1782787855000,-2435.25,0.00029863,7]
[426763404,1782787855000,-1177.25,0.00029863,7]
[426763446,1782787855000,-2435.25,0.00029863,7]
[426763442,1782787855000,-819.08,0.00029863,7]
[426763447,1782787855000,-561.77494451,0.00029863,7]
[426763431,1782787855000,-819.08,0.00029863,7]
[426763415,1782787855000,-1177.25,0.00029863,7]
[426763434,1782787855000,-2435.25,0.00029863,7]
[426763403,1782787855000,-501.81487282,0.00029863,7]
[426763407,1782787855000,-819.08,0.00029863,7]
[426763406,1782787855000,-1177.25,0.00029863,7]
[426763411,1782787855000,-2435.25,0.00029863,7]
[426763410,1782787855000,-1177.25,0.00029863,7]
[426763409,1782787855000,-819.08,0.00029863,7]
[426763408,1782787855000,-1177.25,0.00029863,7]
[426763412,1782787855000,-1177.25,0.00029863,7]
[426763413,1782787855000,-819.08,0.00029863,7]
[426763416,1782787855000,-819.08,0.00029863,7]
[426763405,1782787855000,-819.08,0.00029863,7]
[426763420,1782787855000,-819.08,0.00029863,7]
[426763422,1782787855000,-819.08,0.00029863,7]
[426763419,1782787855000,-2435.25,0.00029863,7]
[426763417,1782787855000,-2435.25,0.00029863,7]
[426763421,1782787855000,-2435.25,0.00029863,7]
[426763424,1782787855000,-819.08,0.00029863,7]
[426763428,1782787855000,-819.08,0.00029863,7]
[426763423,1782787855000,-2435.25,0.00029863,7]
[426763425,1782787855000,-2435.25,0.00029863,7]
[426763427,1782787855000,-2435.25,0.00029863,7]
[426763426,1782787855000,-819.08,0.00029863,7]
[426763429,1782787855000,-300.84484811,0.00029863,7]
[426763418,1782787855000,-1177.28,0.00029863,7]
[426763485,1782787856000,-500.0,0.00029863,7]
[426763494,1782787856000,-1563.82,0.00029863,7]
[426763487,1782787856000,-500.0,0.00029863,7]
[426763488,1782787856000,-1563.82,0.00029863,7]
[426763486,1782787856000,-1563.82,0.00029863,7]
[426763501,1782787856000,-1563.82,0.00029863,7]
[426763490,1782787856000,-500.0,0.00029863,7]
[426763491,1782787856000,-1563.82,0.00029863,7]
[426763492,1782787856000,-500.0,0.00029863,7]
[426763493,1782787856000,-500.0,0.00029863,7]
[426763499,1782787856000,-500.0,0.00029863,7]
[426763498,1782787856000,-500.0,0.00029863,7]
[426763496,1782787856000,-500.0,0.00029863,7]
[426763497,1782787856000,-1563.82,0.00029863,7]
[426763500,1782787856000,-500.0,0.00029863,7]
[426763503,1782787856000,-500.0,0.00029863,7]
[426763502,1782787856000,-500.0,0.00029863,7]
[426763512,1782787856000,-500.0,0.00029863,7]
[426763504,1782787856000,-500.0,0.00029863,7]
[426763510,1782787856000,-500.0,0.00029863,7]
[426763489,1782787856000,-500.0,0.00029863,7]
[426763495,1782787856000,-500.0,0.00029863,7]
[426763484,1782787856000,-500.0,0.00029863,7]
[426763467,1782787856000,-511.43381072,0.00029863,7]
[426763483,1782787856000,-500.0,0.00029863,7]
[426763462,1782787856000,-2435.48,0.00029863,7]
[426763463,1782787856000,-500.0,0.00029863,7]
[426763461,1782787856000,-2435.25,0.00029863,7]
[426763465,1782787856000,-500.0,0.00029863,7]
[426763460,1782787856000,-500.0,0.00029863,7]
[426763464,1782787856000,-500.0,0.00029863,7]
[426763459,1782787856000,-2435.25,0.00029863,7]
[426763468,1782787856000,-500.0,0.00029863,7]
[426763471,1782787856000,-500.0,0.00029863,7]
[426763472,1782787856000,-500.0,0.00029863,7]
[426763469,1782787856000,-500.0,0.00029863,7]
[426763505,1782787856000,-1563.82,0.00029863,7]
[426763470,1782787856000,-500.0,0.00029863,7]
[426763474,1782787856000,-500.0,0.00029863,7]
[426763473,1782787856000,-500.0,0.00029863,7]
[426763475,1782787856000,-500.0,0.00029863,7]
[426763476,1782787856000,-500.0,0.00029863,7]
[426763477,1782787856000,-500.0,0.00029863,7]
[426763479,1782787856000,-500.0,0.00029863,7]
[426763478,1782787856000,-500.0,0.00029863,7]
[426763482,1782787856000,-367.39967788,0.00029863,7]
[426763480,1782787856000,-571.5790887,0.00029863,7]
[426763507,1782787856000,-500.0,0.00029863,7]
[426763466,1782787856000,-179.59741569,0.00029863,7]
[426763506,1782787856000,-500.0,0.00029863,7]
[426763534,1782787856000,-1563.82,0.00029863,7]
[426763548,1782787856000,-500.0,0.00029863,7]
[426763549,1782787856000,-617.02982697,0.00029863,7]
[426763547,1782787856000,-1959.51,0.00029863,7]
[426763538,1782787856000,-1563.82,0.00029863,7]
[426763539,1782787856000,-1563.82,0.00029863,7]
[426763546,1782787856000,-1959.51,0.00029863,7]
[426763540,1782787856000,-1564.03,0.00029863,7]
[426763542,1782787856000,-1959.51,0.00029863,7]
[426763541,1782787856000,-1959.51,0.00029863,7]
[426763535,1782787856000,-1563.82,0.00029863,7]
[426763544,1782787856000,-1959.51,0.00029863,7]
[426763545,1782787856000,-1959.51,0.00029863,7]
[426763551,1782787856000,-500.0,0.00029863,7]
[426763550,1782787856000,-1342.48017303,0.00029863,7]
[426763554,1782787856000,-500.0,0.00029863,7]
[426763555,1782787856000,-500.0,0.00029863,7]
[426763552,1782787856000,-1959.51,0.00029863,7]
[426763553,1782787856000,-500.0,0.00029863,7]
[426763556,1782787856000,-500.0,0.00029863,7]
[426763557,1782787856000,-500.0,0.00029863,7]
[426763508,1782787856000,-1563.82,0.00029863,7]
[426763543,1782787856000,-1959.51,0.00029863,7]
[426763536,1782787856000,-1563.82,0.00029863,7]
[426763481,1782787856000,-500.0,0.00029863,7]
[426763528,1782787856000,-500.0,0.00029863,7]
[426763537,1782787856000,-1563.82,0.00029863,7]
[426763509,1782787856000,-500.0,0.00029863,7]
[426763511,1782787856000,-1563.82,0.00029863,7]
[426763514,1782787856000,-1563.82,0.00029863,7]
[426763522,1782787856000,-500.0,0.00029863,7]
[426763523,1782787856000,-500.0,0.00029863,7]
[426763524,1782787856000,-1563.82,0.00029863,7]
[426763525,1782787856000,-500.0,0.00029863,7]
[426763515,1782787856000,-500.0,0.00029863,7]
[426763519,1782787856000,-1563.82,0.00029863,7]
[426763516,1782787856000,-500.0,0.00029863,7]
[426763513,1782787856000,-500.0,0.00029863,7]
[426763520,1782787856000,-500.0,0.00029863,7]
[426763518,1782787856000,-500.0,0.00029863,7]
[426763521,1782787856000,-1563.82,0.00029863,7]
[426763526,1782787856000,-500.0,0.00029863,7]
[426763532,1782787856000,-1563.82,0.00029863,7]
[426763533,1782787856000,-1563.82,0.00029863,7]
[426763530,1782787856000,-303.02,0.00029863,7]
[426763529,1782787856000,-500.0,0.00029863,7]
[426763531,1782787856000,-1563.82,0.00029863,7]
[426763517,1782787856000,-500.0,0.00029863,7]
[426763527,1782787856000,-1563.82,0.00029863,7]
[426763609,1782787857000,-500.0,0.00029863,7]
[426763612,1782787857000,-500.0,0.00029863,7]
[426763611,1782787857000,-500.0,0.00029863,7]
[426763610,1782787857000,-500.0,0.00029863,7]
[426763603,1782787857000,-1959.51,0.00029863,7]
[426763607,1782787857000,-500.0,0.00029863,7]
[426763605,1782787857000,-500.0,0.00029863,7]
[426763604,1782787857000,-500.0,0.00029863,7]
[426763613,1782787857000,-500.0,0.00029863,7]
[426763608,1782787857000,-531.0613335,0.00029863,7]
[426763615,1782787857000,-500.0,0.00029863,7]
[426763620,1782787857000,-500.0,0.00029863,7]
[426763606,1782787857000,-1959.54,0.00029863,7]
[426763616,1782787857000,-500.0,0.00029863,7]
[426763614,1782787857000,-500.0,0.00029863,7]
[426763619,1782787857000,-500.0,0.00029863,7]
[426763628,1782787857000,-521.3315575,0.00029863,7]
[426763627,1782787857000,-500.0,0.00029863,7]
[426763629,1782787857000,-275.99728983,0.00029863,7]
[426763618,1782787857000,-500.0,0.00029863,7]
[426763596,1782787857000,-500.0,0.00029863,7]
[426763621,1782787857000,-500.0,0.00029863,7]
[426763622,1782787857000,-500.0,0.00029863,7]
[426763617,1782787857000,-500.0,0.00029863,7]
[426763600,1782787857000,-500.0,0.00029863,7]
[426763589,1782787857000,-500.0,0.00029863,7]
[426763602,1782787857000,-500.0,0.00029863,7]
[426763571,1782787857000,-500.0,0.00029863,7]
[426763573,1782787857000,-500.0,0.00029863,7]
[426763575,1782787857000,-500.0,0.00029863,7]
[426763578,1782787857000,-1959.51,0.00029863,7]
[426763576,1782787857000,-1959.51,0.00029863,7]
[426763577,1782787857000,-500.0,0.00029863,7]
[426763574,1782787857000,-1959.51,0.00029863,7]
[426763584,1782787857000,-500.0,0.00029863,7]
[426763583,1782787857000,-500.0,0.00029863,7]
[426763581,1782787857000,-1959.51,0.00029863,7]
[426763585,1782787857000,-1959.51,0.00029863,7]
[426763582,1782787857000,-500.0,0.00029863,7]
[426763586,1782787857000,-189.66,0.00029863,7]
[426763587,1782787857000,-500.0,0.00029863,7]
[426763588,1782787857000,-1959.51,0.00029863,7]
[426763591,1782787857000,-500.0,0.00029863,7]
[426763624,1782787857000,-500.0,0.00029863,7]
[426763590,1782787857000,-1959.51,0.00029863,7]
[426763592,1782787857000,-500.0,0.00029863,7]
[426763593,1782787857000,-1959.51,0.00029863,7]
[426763594,1782787857000,-500.0,0.00029863,7]
[426763595,1782787857000,-500.0,0.00029863,7]
[426763597,1782787857000,-500.0,0.00029863,7]
[426763598,1782787857000,-500.0,0.00029863,7]
[426763601,1782787857000,-500.0,0.00029863,7]
[426763599,1782787857000,-1959.51,0.00029863,7]
[426763623,1782787857000,-500.0,0.00029863,7]
[426763637,1782787857000,-500.0,0.00029863,7]
[426763625,1782787857000,-500.0,0.00029863,7]
[426763668,1782787857000,-500.0,0.00029863,7]
[426763664,1782787857000,-888.79,0.00029863,7]
[426763659,1782787857000,-500.0,0.00029863,7]
[426763665,1782787857000,-500.0,0.00029863,7]
[426763666,1782787857000,-561.92,0.00029863,7]
[426763656,1782787857000,-500.0,0.00029863,7]
[426763662,1782787857000,-500.0,0.00029863,7]
[426763661,1782787857000,-888.79,0.00029863,7]
[426763667,1782787857000,-888.79,0.00029863,7]
[426763670,1782787857000,-888.79,0.00029863,7]
[426763681,1782787857000,-561.92,0.00029863,7]
[426763663,1782787857000,-561.92,0.00029863,7]
[426763669,1782787857000,-561.92,0.00029863,7]
[426763680,1782787857000,-888.79,0.00029863,7]
[426763672,1782787857000,-561.92,0.00029863,7]
[426763673,1782787857000,-888.79,0.00029863,7]
[426763671,1782787857000,-500.0,0.00029863,7]
[426763674,1782787857000,-500.0,0.00029863,7]
[426763677,1782787857000,-321.94015934,0.00029863,7]
[426763676,1782787857000,-888.79,0.00029863,7]
[426763678,1782787857000,-561.92,0.00029863,7]
[426763675,1782787857000,-561.92,0.00029863,7]
[426763679,1782787857000,-561.92,0.00029863,7]
[426763579,1782787857000,-500.0,0.00029863,7]
[426763682,1782787857000,-888.79,0.00029863,7]
[426763626,1782787857000,-500.0,0.00029863,7]
[426763660,1782787857000,-561.92,0.00029863,7]
[426763657,1782787857000,-561.92,0.00029863,7]
[426763630,1782787857000,-500.0,0.00029863,7]
[426763632,1782787857000,-500.0,0.00029863,7]
[426763638,1782787857000,-888.79,0.00029863,7]
[426763635,1782787857000,-888.79,0.00029863,7]
[426763633,1782787857000,-500.0,0.00029863,7]
[426763631,1782787857000,-888.79,0.00029863,7]
[426763634,1782787857000,-500.0,0.00029863,7]
[426763636,1782787857000,-561.92,0.00029863,7]
[426763640,1782787857000,-500.0,0.00029863,7]
[426763639,1782787857000,-561.92,0.00029863,7]
[426763641,1782787857000,-888.79,0.00029863,7]
[426763658,1782787857000,-888.79,0.00029863,7]
[426763642,1782787857000,-561.92,0.00029863,7]
[426763652,1782787857000,-888.79,0.00029863,7]
[426763654,1782787857000,-561.92,0.00029863,7]
[426763644,1782787857000,-888.79,0.00029863,7]
[426763643,1782787857000,-500.0,0.00029863,7]
[426763645,1782787857000,-561.92,0.00029863,7]
[426763649,1782787857000,-561.92,0.00029863,7]
[426763648,1782787857000,-888.79,0.00029863,7]
[426763646,1782787857000,-888.79,0.00029863,7]
[426763651,1782787857000,-561.92,0.00029863,7]
[426763647,1782787857000,-561.92,0.00029863,7]
[426763655,1782787857000,-888.79,0.00029863,7]
[426763653,1782787857000,-500.0,0.00029863,7]
[426763650,1782787857000,-888.79,0.00029863,7]
[426763572,1782787857000,-500.0,0.00029863,7]
[426763570,1782787857000,-1959.51,0.00029863,7]
[426763559,1782787857000,-1959.51,0.00029863,7]
[426763558,1782787857000,-500.0,0.00029863,7]
[426763566,1782787857000,-500.0,0.00029863,7]
[426763560,1782787857000,-500.0,0.00029863,7]
[426763567,1782787857000,-1959.51,0.00029863,7]
[426763561,1782787857000,-500.0,0.00029863,7]
[426763580,1782787857000,-500.0,0.00029863,7]
[426763564,1782787857000,-500.0,0.00029863,7]
[426763565,1782787857000,-500.0,0.00029863,7]
[426763562,1782787857000,-1959.51,0.00029863,7]
[426763569,1782787857000,-500.0,0.00029863,7]
[426763568,1782787857000,-500.0,0.00029863,7]
[426763563,1782787857000,-500.0,0.00029863,7]
[426763700,1782787858000,-562.02,0.00029863,7]
[426763696,1782787858000,-500.0,0.00029863,7]
[426763699,1782787858000,-614.78817757,0.00029863,7]
[426763698,1782787858000,-888.82,0.00029863,7]
[426763707,1782787858000,-500.0,0.00029863,7]
[426763708,1782787858000,-2207.62,0.00029863,7]
[426763694,1782787858000,-561.92,0.00029863,7]
[426763690,1782787858000,-561.92,0.00029863,7]
[426763692,1782787858000,-888.79,0.00029863,7]
[426763695,1782787858000,-888.79,0.00029863,7]
[426763689,1782787858000,-500.0,0.00029863,7]
[426763703,1782787858000,-500.0,0.00029863,7]
[426763687,1782787858000,-500.0,0.00029863,7]
[426763684,1782787858000,-500.0,0.00029863,7]
[426763686,1782787858000,-561.92,0.00029863,7]
[426763691,1782787858000,-207.44820993,0.00029863,7]
[426763688,1782787858000,-888.79,0.00029863,7]
[426763685,1782787858000,-888.79,0.00029863,7]
[426763683,1782787858000,-561.92,0.00029863,7]
[426763693,1782787858000,-500.0,0.00029863,7]
[426763704,1782787858000,-500.0,0.00029863,7]
[426763697,1782787858000,-561.92,0.00029863,7]
[426763701,1782787858000,-500.0,0.00029863,7]
[426763725,1782787858000,-500.0,0.00029863,7]
[426763724,1782787858000,-1640.45902244,0.00029863,7]
[426763723,1782787858000,-567.16097756,0.00029863,7]
[426763719,1782787858000,-685.07,0.00029863,7]
[426763722,1782787858000,-685.07,0.00029863,7]
[426763720,1782787858000,-2207.62,0.00029863,7]
[426763721,1782787858000,-500.0,0.00029863,7]
[426763718,1782787858000,-500.0,0.00029863,7]
[426763716,1782787858000,-685.07,0.00029863,7]
[426763726,1782787858000,-685.07,0.00029863,7]
[426763714,1782787858000,-2207.62,0.00029863,7]
[426763713,1782787858000,-685.07,0.00029863,7]
[426763727,1782787858000,-146.95360617,0.00029863,7]
[426763717,1782787858000,-2207.62,0.00029863,7]
[426763710,1782787858000,-2207.62,0.00029863,7]
[426763712,1782787858000,-500.0,0.00029863,7]
[426763711,1782787858000,-500.0,0.00029863,7]
[426763709,1782787858000,-2207.62,0.00029863,7]
[426763702,1782787858000,-500.0,0.00029863,7]
[426763705,1782787858000,-500.0,0.00029863,7]
[426763715,1782787858000,-500.0,0.00029863,7]
[426763706,1782787858000,-500.0,0.00029863,7]
[426763729,1782787950000,417.15472785,0.00029235,30]
[426763740,1782788224000,3858.939446,0.000125,2]
[426763741,1782788229000,1054.55542854,0.0001,2]
[426764099,1782788915000,160.0,0.00029211,30]
[426764146,1782789032000,-2702.95553448,0.00013,2]
[426764144,1782789032000,-861.22499388,0.00013,7]
[426764148,1782789032000,-46.72781214,0.0001326,7]
[426764145,1782789032000,-526.74,0.00013,7]
[426764147,1782789032000,-802.22357259,0.00013,2]
[426764143,1782789032000,-523.35,0.00012999,7]
[426764184,1782789039000,-1138.28258311,0.00014001,2]
[426764180,1782789039000,-371.84176347,0.0001371,2]
[426764181,1782789039000,-53.50848467,0.00013856,2]
[426764182,1782789039000,-675.72159861,0.00013856,2]
[426764179,1782789039000,-410.19192184,0.0001371,2]
[426764173,1782789039000,-814.49718174,0.0001326,7]
[426764175,1782789039000,-376.51210402,0.0001326,7]
[426764176,1782789039000,-227.88440102,0.00013564,2]
[426764174,1782789039000,-150.22789598,0.0001326,7]
[426764183,1782789039000,-424.9620154,0.00013856,2]
[426764178,1782789039000,-526.74,0.0001365,7]
[426764186,1782789039000,-861.22499388,0.0001404,7]
[426764177,1782789039000,-861.22499388,0.0001365,7]
[426764188,1782789039000,-861.22499389,0.0001456,7]
[426764185,1782789039000,-663.33914591,0.00014001,2]
[426764197,1782789039000,-286.434057,0.00017827,2]
[426764196,1782789039000,-286.434057,0.00017107,2]
[426764195,1782789039000,-542.2049753,0.00016831,2]
[426764194,1782789039000,-263.9249807,0.0001579,2]
[426764192,1782789039000,-31.64797694,0.00014863,7]
[426764198,1782789039000,-286.434057,0.00018547,2]
[426764193,1782789039000,-526.74,0.00015,7]
[426764190,1782789039000,-389.01135756,0.00014802,2]
[426764189,1782789039000,-340.72566353,0.00014602,2]
[426764191,1782789039000,-495.09202306,0.00014863,7]
[426764187,1782789039000,-526.74,0.0001404,7]
[426764199,1782789039000,-83.09693723,0.00019267,2]
[426764224,1782789044000,-93.28401708,0.00019987,2]
[426764223,1782789044000,-203.33711977,0.00019267,2]
[426764249,1782789047000,-500.0,0.00026493,2]
[426764250,1782789047000,-249.07,0.00026494,2]
[426764252,1782789047000,-2229.851,0.00026494,2]
[426764255,1782789047000,-200.576,0.00026494,2]
[426764248,1782789047000,-1220.21,0.000261,2]
[426764256,1782789047000,-446.0,0.00026494,2]
[426764246,1782789047000,-1220.216,0.000261,2]
[426764247,1782789047000,-1220.216,0.000261,2]
[426764240,1782789047000,-151.39835742,0.000215,2]
[426764245,1782789047000,-380.0,0.00024658,2]
[426764244,1782789047000,-15050.42572386,0.0002465,2]
[426764241,1782789047000,-160.0,0.00023,2]
[426764243,1782789047000,-500.0,0.00024649,2]
[426764242,1782789047000,-178.12507237,0.00023955,5]
[426764254,1782789047000,-746.0,0.00026494,2]
[426764239,1782789047000,-286.434057,0.00020708,2]
[426764238,1782789047000,-193.15003992,0.00019987,2]
[426764251,1782789047000,-1860.178,0.00026494,2]
[426764258,1782789047000,-151.0,0.00027575,2]
[426764253,1782789047000,-1421.0,0.00026494,2]
[426764270,1782789047000,-176.94445854,0.00028844,2]
[426764257,1782789047000,-170.91,0.00027397,2]
[426764277,1782789047000,-16832.05743766,0.00029211,2]
[426764276,1782789047000,-286.77,0.00029165,15]
[426764275,1782789047000,-286.77,0.00029115,15]
[426764274,1782789047000,-286.77,0.00029065,15]
[426764272,1782789047000,-286.77,0.00028965,15]
[426764271,1782789047000,-245.05,0.00028944,15]
[426764264,1782789047000,-151.0,0.00027575,2]
[426764269,1782789047000,-1068.66147285,0.00028627,14]
[426764273,1782789047000,-286.77,0.00029015,15]
[426764268,1782789047000,-206.2103777,0.00027575,2]
[426764267,1782789047000,-151.0,0.00027575,2]
[426764260,1782789047000,-151.0,0.00027575,2]
[426764266,1782789047000,-151.0,0.00027575,2]
[426764265,1782789047000,-151.0,0.00027575,2]
[426764262,1782789047000,-151.0,0.00027575,2]
[426764261,1782789047000,-151.0,0.00027575,2]
[426764259,1782789047000,-151.0,0.00027575,2]
[426764263,1782789047000,-151.0,0.00027575,2]
[426765107,1782790233000,-153.21,0.00025784,2]
[426765109,1782790233000,-1082.4128,0.000261,5]
[426765105,1782790233000,-161.15472771,0.00022207,5]
[426765106,1782790233000,-152.78,0.00025147,2]
[426765104,1782790233000,-157.24192618,0.00022207,5]
[426765111,1782790233000,-746.0,0.00026508,2]
[426765108,1782790233000,-931.0,0.00026,2]
[426765110,1782790233000,-446.0,0.00026508,2]
[426765115,1782790233000,-187.3,0.00027229,2]
[426765113,1782790233000,-154.57,0.00026928,2]
[426765114,1782790233000,-154.7,0.00027028,2]
[426765117,1782790233000,-153.69,0.00027588,2]
[426765116,1782790233000,-153.61,0.00027504,2]
[426765120,1782790233000,-160.0,0.00028609,3]
[426765118,1782790233000,-216.1761,0.000279,2]
[426765119,1782790233000,-300.0,0.00027901,10]
[426765121,1782790233000,-1319.04768413,0.000291,2]
[426765112,1782790233000,-200.576,0.00026508,2]
[426765134,1782790240000,-1693.17203029,0.00026508,2]
[426765153,1782790243000,-219.456,0.00029315,22]
[426765154,1782790243000,-286.77,0.00029365,15]
[426765152,1782790243000,-151.70859016,0.00029315,22]
[426765149,1782790243000,-286.77,0.00029215,15]
[426765155,1782790243000,-194.614355,0.000294,2]
[426765147,1782790243000,-909.29432954,0.00029211,7]
[426765150,1782790243000,-286.77,0.00029265,15]
[426765148,1782790243000,-1112.86,0.00029211,7]
[426765146,1782790243000,-3795.86442536,0.00029211,2]
[426765145,1782790243000,-151.82796971,0.00026508,2]
[426765151,1782790243000,-286.77,0.00029315,15]
[426765156,1782790243000,-286.77,0.00029415,15]
[426765162,1782790243000,-186.0,0.00029508,2]
[426765161,1782790243000,-746.0,0.00029508,2]
[426765157,1782790243000,-286.77,0.00029465,15]
[426765169,1782790243000,-906.70311313,0.0002962,3]
[426765168,1782790243000,-286.77,0.00029615,15]
[426765167,1782790243000,-986.1699,0.000296,3]
[426765164,1782790243000,-286.77,0.00029515,15]
[426765165,1782790243000,-286.77,0.00029565,15]
[426765163,1782790243000,-1844.0,0.00029508,2]
[426765158,1782790243000,-500.0,0.00029493,7]
[426765159,1782790243000,-176.94445853,0.000295,2]
[426765166,1782790243000,-2035.011,0.000296,3]
[426765160,1782790243000,-446.0,0.00029508,2]
[426765191,1782790246000,-313.960691,0.00029097,2]
[426765192,1782790246000,-94.05862763,0.00029097,2]
[426765190,1782790246000,-500.0,0.00029097,2]
[426765197,1782790329000,-151.0,0.00021541,2]
[426765198,1782790365000,-211.95599665,0.00025692,2]
[426765526,1782791438000,-1150.03067988,0.0002653,2]
[426765967,1782791557000,1012.08757547,0.0002952,120]
[426765971,1782791683000,563011.88752992,0.000299,30]
[426765975,1782791771000,179918.29979076,0.00029211,30]
[426765976,1782791834000,3347.66240879,0.000125,2]
[426765978,1782791854000,13115.00458758,0.00012,2]
[426765993,1782792287000,4012.48,0.00030137,30]
[426766061,1782792606000,33056.0,0.00029,120]
[426766344,1782792638000,-150.344,0.0002653,2]
[426766347,1782792638000,-2216.0,0.0002653,2]
[426766352,1782792638000,-1083.7548331,0.00028455,2]
[426766355,1782792638000,-3538.62030827,0.000291,2]
[426766348,1782792638000,-554.068,0.0002653,2]
[426766354,1782792638000,-378.11435831,0.00028702,2]
[426766346,1782792638000,-1421.0,0.0002653,2]
[426766349,1782792638000,-200.576,0.0002653,2]
[426766353,1782792638000,-242.23542474,0.00028702,2]
[426766350,1782792638000,-446.0,0.0002653,2]
[426766357,1782792638000,-141.32937946,0.000295,2]
[426766356,1782792638000,-890.29,0.00029211,7]
[426766345,1782792638000,-1845.0,0.0002653,2]
[426766351,1782792638000,-793.5531888,0.00028394,2]
[426766388,1782792866000,5000.0,0.0003009,30]
[426766389,1782792867000,5000.0,0.0003009,30]
[426766390,1782792867000,5000.0,0.0003009,30]
[426766391,1782792868000,5000.0,0.0003009,30]
[426766392,1782792869000,5000.0,0.0003009,30]
[426766393,1782792870000,5000.0,0.0003009,30]
[426766394,1782792877000,3158.48,0.00030137,30]
[426766464,1782793107000,1036.0121813,0.00029213,30]
[426766475,1782793599000,293.0,0.00030137,30]
[426766668,1782793842000,-476.10863222,0.00026527,2]
[426766695,1782793847000,-431.4859538,0.00026527,2]
[426766694,1782793847000,-525.91619621,0.00026527,2]
[426766693,1782793847000,-500.0,0.00026527,2]